Cogmind - Beta 15 @@@ ROGUE MODE // 2025.10.21 @ 21:49:30 // Winter2019/RPGLIKE Player: Runagate Result: Destroyed by G-73 Enforcer with Phase Gun Performance ------------- Evolutions (6) 3000 Regions Visited (15) 3000 Robots Destroyed (385) 1925 Value Destroyed (13383) 13383 Prototype IDs (7) 140 Alien Tech Used (0) 0 Bonus (2925) 2925 TOTAL SCORE: 24373 Bonus ------- High Alert Combat Kills 2015 Follower Combat Kills 615 A7 Reached Mainframe 300 Friendly Fire -5 Cogmind --------- Core Integrity 0/1500 Matter 400/400 Energy 340/340 System Corruption 4% Temperature Cool (26) Movement Treading (160) Location -4/Factory Parts ------- > --- POWER (2) -------- Heavy Ion Engine Light Fission Core > --- PROPULSION (4) --- Heavy Treads Heavy Treads > --- UTILITY (8) ------ Improved Signal Interpreter Improved Terrain Scanner Advanced Targeting Computer Core Analyzer Improved Weapon Cycler Centrium Medium Armor Plating Hardlight Generator Long-range Tractor Beam > --- WEAPON (4) ------- KE Penetrator KE Penetrator Mass Driver Hypervelocity Gauss Cannon > --- INVENTORY (3) ---- Advanced Recoil Stabilizer Shock Rifle Advanced Variable Charge Gun Peak State ------------ > --- POWER ------------ Heavy Ion Engine Light Fission Core > --- PROPULSION ------- Heavy Treads Heavy Treads > --- UTILITY ---------- Improved Signal Interpreter Improved Terrain Scanner Advanced Targeting Computer Core Analyzer Improved Weapon Cycler Centrium Medium Armor Plating Hardlight Generator Long-range Tractor Beam > --- WEAPON ----------- KE Penetrator KE Penetrator Mass Driver Hypervelocity Gauss Cannon > --- INVENTORY -------- Advanced Recoil Stabilizer Shock Rifle Advanced Variable Charge Gun [Rating: 94] Favorites ----------- Power Heavy Ion Engine Engine Heavy Ion Engine Power Core Micro Nuclear Core Propulsion Light Treads Treads Light Treads Leg Aluminum Leg Utility Seismic Detector Device Seismic Detector Processor Advanced Targeting Computer Protection Centrium Medium Armor Plating Weapon Flak Cannon Energy Gun Medium Laser Ballistic Gun Flak Gun Ballistic Cannon Flak Cannon Build | -11 -10 -9 -9 -8 -7 -7 -7 -6 -6 -6 -6 -5 -5 -5 -4 ------- Run | Yrd Mat Mat Min Mat Fac Low Low Fac Ext Cet Arc Fac Was Fac Fac Slots Evolved 14 | 4 . 3 . 2 . 1 1 1 . . . 2 . . . Power 1 | . . . . . . . . . . . . 1 . . . Propulsion 3 | 1 . 1 . . . . 1 . . . . . . . . Utility 7 | 2 . 1 . 2 . 1 . . . . . 1 . . . Weapon 3 | 1 . 1 . . . . . 1 . . . . . . . Parts Attached 77 | 8 3 18 . 14 9 1 . 4 . 2 . 11 . 6 1 Power 8 | 2 . 2 . 2 . . . . . . . 1 . 1 . Engine 6 | 2 . 2 . 2 . . . . . . . . . . . Core 2 | . . . . . . . . . . . . 1 . 1 . Reactor . | . . . . . . . . . . . . . . . . Propulsion 15 | 2 . 5 . 1 2 . . 1 . . . 2 . 2 . Treads 13 | . . 5 . 1 2 . . 1 . . . 2 . 2 . Leg 2 | 2 . . . . . . . . . . . . . . . Wheel . | . . . . . . . . . . . . . . . . Hover . | . . . . . . . . . . . . . . . . Flight . | . . . . . . . . . . . . . . . . Utility 31 | 2 1 5 . 9 3 1 . 1 . 1 . 6 . 1 1 Device 19 | 2 1 2 . 6 1 . . . . . . 6 . . 1 Storage . | . . . . . . . . . . . . . . . . Processor 5 | . . . . 2 1 1 . . . . . . . 1 . Hackware . | . . . . . . . . . . . . . . . . Protection 7 | . . 3 . 1 1 . . 1 . 1 . . . . . Artifact . | . . . . . . . . . . . . . . . . Weapon 23 | 2 2 6 . 2 4 . . 2 . 1 . 2 . 2 . Energy Gun 4 | 2 . . . . . . . 1 . 1 . . . . . Energy Cannon . | . . . . . . . . . . . . . . . . Ballistic Gun 8 | . . 2 . 2 1 . . 1 . . . . . 2 . Ballistic Cannon 11 | . 2 4 . . 3 . . . . . . 2 . . . Launcher . | . . . . . . . . . . . . . . . . Special Weapon . | . . . . . . . . . . . . . . . . Impact Weapon . | . . . . . . . . . . . . . . . . Slashing Weapon . | . . . . . . . . . . . . . . . . Piercing Weapon . | . . . . . . . . . . . . . . . . Special Melee Weapon . | . . . . . . . . . . . . . . . . Unidentified Prototypes 7 | . . 1 . 2 . . . . . 2 . 2 . . . Parts Lost 1 | . . . . 1 . . . . . . . . . . . Power . | . . . . . . . . . . . . . . . . Propulsion . | . . . . . . . . . . . . . . . . Utility 1 | . . . . 1 . . . . . . . . . . . Weapon . | . . . . . . . . . . . . . . . . Highest Loss Streak 1 | . . . . 1 . . . . . . . . . . . To Critical Strikes . | . . . . . . . . . . . . . . . . Average Backups 2 | . . 1 2 2 3 2 2 2 3 3 3 3 3 3 3 Power . | . . . . . . . . . . . . . . . . Propulsion . | . . . . . . . . . . . . . . . . Utility 1 | . . 1 2 1 1 1 1 1 2 1 1 1 1 1 1 Weapon 1 | . . . . . 1 1 1 1 1 1 2 2 2 2 2 Tool/Special . | . . . . . . . . . . . . . . . . Unused Backups 7 | . . 3 . 1 . . . . . 1 . 1 . . 1 Power 1 | . . 1 . . . . . . . . . . . . . Propulsion . | . . . . . . . . . . . . . . . . Utility 5 | . . 2 . 1 . . . . . . . 1 . . 1 Weapon 1 | . . . . . . . . . . 1 . . . . . Tool/Special . | . . . . . . . . . . . . . . . . Average Slot Usage (%) 95 | . 85 93 90 98 100 99 95 97 100 100 100 97 100 88 88 Engine 7 | . 12 10 9 7 7 7 6 6 6 6 6 5 5 5 5 Core 1 | . . . . . . . . . . . . 2 5 5 5 Treads 20 | . . 24 27 24 23 21 20 23 25 25 25 22 22 11 11 Leg 1 | . 25 . . . . . . . . . . . . . . Device 25 | . 23 20 18 27 32 28 26 25 25 25 25 26 27 22 22 Processor 7 | . . . . 6 7 13 13 12 12 12 12 11 11 15 16 Protection 6 | . . 9 9 6 4 7 6 6 6 6 6 5 5 5 5 Energy Gun 1 | . 12 . . . . . . . . 5 . . . . . Ballistic Gun 5 | . . 7 9 7 1 . . 4 5 . 5 4 5 8 10 Ballistic Cannon 17 | . 12 20 18 15 21 21 20 18 18 18 18 16 16 13 11 Peak Build Rating 94 | 7 7 15 14 28 37 41 41 45 45 56 56 77 76 94 94 Average Rating 40 | 4 6 13 14 22 34 40 41 44 44 51 53 65 76 90 93 On Entrance 39 | . 6 7 14 14 28 37 41 41 45 45 56 53 76 76 94 Naked Turns . | . . . . . . . . . . . . . . . . Heaviest Build 59 | 10 13 24 22 28 37 37 37 43 43 46 46 59 59 59 59 Greatest Support 145 | 20 25 68 68 68 72 72 72 92 92 92 92 99 99 145 145 Greatest Overweight (x) 2 | . . 2 . . . . . . . . . . . . . Average Overweight (x) . | . . . . . . . . . . . . . . . . Largest Inventory Capacity 3 | . 1 2 2 3 3 3 3 3 3 3 3 3 3 3 3 Average Capacity 2 | . . 1 2 2 3 3 3 3 3 3 3 3 3 3 3 Most Carried 3 | . 1 2 2 3 3 3 2 3 3 3 3 3 3 3 3 Average Carried 2 | . . 1 2 2 2 2 2 2 3 3 3 3 3 2 3 Final Capacity 3 | . 1 2 2 3 3 3 3 3 3 3 3 3 3 3 3 Final Carried 3 | . 1 2 2 3 3 2 2 3 3 3 3 3 3 3 3 Class Distribution -------------------- 73% | Gunner 13% | Scavenger-Gunner 11% | Mutant Dominant Class ---------------- Mutant | -10/Materials Gunner | -9/Materials Gunner | -9/Mines Gunner | -8/Materials Gunner | -7/Factory Gunner | -7/Lower Caves Gunner | -7/Lower Caves Gunner | -6/Factory Gunner | -6/Extension Gunner | -6/Cetus Gunner | -6/Archives Gunner | -5/Factory Gunner | -5/Waste Gunner | -5/Factory Gunner | -4/Factory Resources | -11 -10 -9 -9 -8 -7 -7 -7 -6 -6 -6 -6 -5 -5 -5 -4 ----------- Run | Yrd Mat Mat Min Mat Fac Low Low Fac Ext Cet Arc Fac Was Fac Fac Matter Collected 11322 | 270 93 1471 72 2193 540 343 27 559 557 125 166 1555 13 1947 1391 Remotely 10502 | . . 1142 72 2065 540 343 27 559 557 125 166 1555 13 1947 1391 Salvage Created 12476 | 143 343 1265 56 3204 520 185 10 472 486 53 159 1404 . 2224 1952 Parts 647 | 12 19 108 4 157 37 9 1 14 19 . 5 64 . 95 103 Haulers Intercepted 10 | . . 2 . 6 . . . . . . . 1 . 1 . Recyclers Shooed 7 | 2 . 1 . . 1 . . . . . . . . 2 1 Parts Field Recycled . | . . . . . . . . . . . . . . . . Retrieved Matter . | . . . . . . . . . . . . . . . . Parts Self-Destructed 9 | . . . . . . 9 . . . . . . . . . Prevented 3 | . . . . . . 3 . . . . . . . . . Kills | -11 -10 -9 -9 -8 -7 -7 -7 -6 -6 -6 -6 -5 -5 -5 -4 ------- Run | Yrd Mat Mat Min Mat Fac Low Low Fac Ext Cet Arc Fac Was Fac Fac Combat Hostiles Destroyed 246 | . 11 34 3 53 14 9 . 9 16 2 3 23 1 41 27 Guns 61 | . 6 11 3 12 . . . 1 3 . 1 2 . 13 9 Cannons 181 | . 4 23 . 41 14 9 . 8 13 2 2 21 1 26 17 AOE 3 | . . . . . . . . . . . . . . 2 1 Classes Destroyed 25 | 2 4 6 . 3 1 3 . . 2 . . 1 1 2 . Worker 38 | . . 4 . 14 3 . . 1 . . . 1 . 6 9 Builder 33 | . 3 1 . 7 2 . . 2 . . . 3 . 3 12 Tunneler 6 | 3 . 1 . . . . . . . . . 2 . . . Hauler 10 | . . 2 . 6 . . . . . . . 1 . 1 . Recycler 25 | 1 1 2 . 10 2 . . . 1 . . 4 . 3 1 Carrier 1 | . . . . . . . . . . . . . . 1 . Minesweeper 1 | . . . . . . 1 . . . . . . . . . Mechanic 2 | . . 1 . . . . . . . . . . . 1 . Operator 6 | . . . . 2 . . . . . . 2 1 . 1 . Watcher 17 | . . 4 . 5 . . . 1 1 . . 4 . 1 1 Swarmer 39 | . 3 7 3 6 4 3 . . . . . 4 . 9 . Saboteur 1 | . . . . . . . . . . . . . . 1 . Grunt 112 | . 7 17 . 32 6 4 . 6 6 . . 3 . 22 9 Brawler 3 | . . . . . . . . . 1 . . . . 1 1 Duelist 9 | . . 1 . 3 . . . 1 . . . . . . 4 Protector 3 | . . . . 2 . . . . . . . . . . 1 Sentry 34 | . . 9 . 9 2 . . 2 4 . 3 4 . 1 . Specialist 3 | . . . . . . . . . . . . 1 . 2 . Hunter 17 | . . . . . . 1 . . 2 . . 5 . 1 8 Programmer 16 | . . . . . 2 1 . . . . . 6 . 4 3 Heavy 1 | . . . . 1 . . . . . . . . . . . Behemoth 3 | . . . . . . . . . 2 . . . . . 1 Compactor 1 | . . . . . . . . . . . . . 1 . . Cetus Guard 2 | . . . . . . . . . . 2 . . . . . Subdweller 1 | . 1 . . . . . . . . . . . . . . Decomposer 1 | . . . . . . . 1 . . . . . . . . Samaritan 1 | . . . . . . 1 . . . . . . . . . Thug 1 | . . . . . . . . . 1 . . . . . . Best Kill Streak 22 | 4 5 5 3 7 5 7 . 4 4 2 5 5 1 19 22 Combat Bots Only 16 | . 3 4 3 5 5 7 . 4 3 2 3 3 1 16 9 Max Kills in Single Turn 6 | 1 1 2 1 2 1 1 1 2 2 1 2 2 1 6 3 Gunslinging . | . . . . . . . . . . . . . . . . Exploded 2 | . . . . . . . . . . . . . . 2 1 Melee . | . . . . . . . . . . . . . . . . Uniques/NPCs Destroyed . | . . . . . . . . . . . . . . . . Combat | -11 -10 -9 -9 -8 -7 -7 -7 -6 -6 -6 -6 -5 -5 -5 -4 -------- Run | Yrd Mat Mat Min Mat Fac Low Low Fac Ext Cet Arc Fac Was Fac Fac Hostile Shots Fired 909 | . 70 108 21 144 31 29 . 10 51 8 2 63 . 143 229 Missed 251 | . 18 21 6 46 12 8 . 1 17 4 1 15 . 31 71 Hits 658 | . 52 87 15 98 19 21 . 9 34 4 1 48 . 112 158 Melee 2 | . . 1 . 1 . . . . . . . . . . . Projectile 656 | . 52 86 15 97 19 21 . 9 34 4 1 48 . 112 158 Critical Strikes 34 | . 1 4 . 6 . . . 1 1 1 . 4 . 7 9 Damage Taken 8349 | . 613 1035 122 1462 332 166 . 98 286 47 22 908 . 1191 2067 Core 6132 | . 510 728 82 1087 263 126 . 70 196 34 17 704 . 827 1488 Absorbed by Shields 1967 | . . . . 356 64 80 . 36 269 45 13 152 . 420 532 Reduced by Siege Mode 34 | . . . . . . . . . . . . . . 22 12 Redirected to Core 5240 | . 335 622 75 954 195 99 . 70 177 23 17 608 . 711 1354 Ignored by Resistances 1317 | . . . . . 37 61 . 36 105 19 8 119 . 393 539 Regen/Repaired (Parts) 92 | . . . . 92 . . . . . . . . . . . Core Remaining (%) 80 | 100 75 . 89 55 . . 91 . . . 80 . . 75 . Volleys Fired 654 | 8 62 96 7 174 25 20 2 21 24 6 6 59 4 76 64 Largest 4 | 2 2 3 3 3 3 3 3 4 4 4 4 4 4 4 4 Hottest 351 | 100 100 83 83 85 111 111 111 161 161 351 139 351 163 164 181 Shots Fired 2065 | 16 124 257 21 522 75 60 6 82 96 24 24 226 17 263 252 Gun 669 | 16 76 65 7 174 . . . 19 24 6 6 55 5 90 126 Cannon 1396 | . 48 192 14 348 75 60 6 63 72 18 18 171 12 173 126 Launcher . | . . . . . . . . . . . . . . . . Special . | . . . . . . . . . . . . . . . . Kinetic 1936 | . 48 257 21 522 75 60 6 79 93 19 24 222 17 263 230 Thermal 97 | 16 76 . . . . . . . . 1 . 4 . . . Explosive . | . . . . . . . . . . . . . . . . Electromagnetic 32 | . . . . . . . . 3 3 4 . . . . 22 Robot Hit Streak 68 | 9 15 21 4 50 25 19 5 22 15 16 15 27 12 68 28 Robot Miss Streak 5 | 1 3 4 2 4 5 3 5 3 5 4 4 4 2 4 2 Penetration Max 1 | . . . . . . . . . . . . . . 1 1 Secondary Targets 1 | . 1 . . . . . . . . . . . . . . Max Gunslinging Chain 1 | . 1 . . . . . . . . . . . . . . Shots Hit Robots 1317 | 12 84 141 9 340 47 44 4 35 74 18 21 129 15 160 184 Core Hits 1087 | 5 22 62 3 147 69 50 2 72 127 29 43 185 6 158 107 Critical Kills 21 | . . . . . . . . . . . . 4 . 10 7 Critical Parts Destroyed 39 | . . . . . . . . . . . . 4 . 18 17 Critical Strikes 88 | 1 7 3 . 9 . . . . . . . 8 1 29 30 Burn 7 | 1 6 . . . . . . . . . . . . . . Destroy 63 | . . . . . . . . . . . . 8 1 28 26 Blast 18 | . 1 3 . 9 . . . . . . . . . 1 4 Melee Attacks . | . . . . . . . . . . . . . . . . Impact . | . . . . . . . . . . . . . . . . Slashing . | . . . . . . . . . . . . . . . . Piercing . | . . . . . . . . . . . . . . . . Sneak Attacks . | . . . . . . . . . . . . . . . . Combat Hostiles . | . . . . . . . . . . . . . . . . Follow-up Attacks . | . . . . . . . . . . . . . . . . Damage Inflicted 34237 | 149 1182 2598 156 6941 1264 850 23 1060 2267 510 662 3399 392 5603 7181 Guns 11729 | 149 651 766 102 2579 . . . 355 524 88 171 1146 90 1940 3168 Cannons 19934 | . 526 1825 54 4335 1165 850 23 705 1692 422 491 2226 302 2789 2529 Explosions 2407 | . . . . . 81 . . . . . . . . 842 1484 Melee . | . . . . . . . . . . . . . . . . Ramming 167 | . 5 7 . 27 18 . . . 51 . . 27 . 32 . Kinetic 30405 | . 526 2591 156 6914 1165 850 23 1060 2179 449 662 3306 392 4729 5403 Thermal 1498 | 149 651 . . . . . . . . . . 66 . 632 . Explosive 1775 | . . . . . 81 . . . . . . . . 210 1484 Electromagnetic 392 | . . . . . . . . . 37 61 . . . . 294 Impact . | . . . . . . . . . . . . . . . . Slashing . | . . . . . . . . . . . . . . . . Piercing . | . . . . . . . . . . . . . . . . Highest Corruption 16 | . . . . . 1 1 1 . 1 1 1 1 14 16 4 Average Corruption 5 | . . . . . 1 1 1 . 1 1 1 1 6 14 2 Corruption Purged 1 | . . . . . . . . . . . . 1 . . . Corruption Blocked . | . . . . . . . . . . . . . . . . Effects 79 | . . . . . 1 8 . . 1 2 . 2 7 53 5 Message Errors 20 | . . . . . . 2 . . . . . . 2 13 3 Matter Fused 14 | . . . . . . 2 . . . . . . 2 10 . Heat Flow Errors 7 | . . . . . . 1 . . 1 . . . 1 4 . Energy Discharges 7 | . . . . . . . . . . 1 . . . 6 . Parts Fused 1 | . . . . . . . . . . . . . . 1 . Data Loss (minor) 8 | . . . . . 1 2 . . . . . 2 . 3 . Data Loss (major) 4 | . . . . . . . . . . . . . . 4 . Misfires 2 | . . . . . . . . . . . . . 1 1 . Alerts 3 | . . . . . . 1 . . . 1 . . . 1 . Misdirections 1 | . . . . . . . . . . . . . 1 . . Weapon Failures 12 | . . . . . . . . . . . . . . 10 2 Overload Shots 3 | . . . . . . . . . . 1 . 2 . . . Overflow Damage 385 | . . 16 . 88 36 1 3 . . . . 27 . 108 106 Projectiles 216 | . . 16 . 88 . 1 3 . . . . 27 . 45 36 Explosions 169 | . . . . . 36 . . . . . . . . 63 70 Melee . | . . . . . . . . . . . . . . . . Knockbacks 211 | . 12 10 1 32 23 26 1 9 10 . 6 22 . 44 15 Impact 2 | . . . . 1 . . . . . . . 1 . . . Kinetic 199 | . 12 10 1 31 23 24 1 9 10 . 6 20 . 38 14 Secondary 10 | . . . . . . 2 . . . . . 1 . 6 1 Self-Inflicted Damage 219 | . . . . . 187 . . . . . . . . . 32 Shots 3 | . . . . . 2 . . . . . . . . . 1 Rammed 17 | . . 1 . 3 1 . . . 5 . . 3 . 4 . Targets Rammed 23 | . 2 1 . 5 2 . . . 5 . . 4 . 4 . Kicked 2 | . 2 . . . . . . . . . . . . . . Crushed 4 | . . . . 2 1 . . . . . . 1 . . . Highest Temperature 465 | 117 318 18 . 16 32 204 16 128 248 244 32 244 188 465 91 Average Temperature 54 | 46 117 5 . 6 13 27 12 46 40 73 24 56 86 80 32 Received Heat Transfer 2070 | . 213 399 . 557 28 63 . 68 37 . 4 24 . 505 172 Effects 5 | . . . . . . . . . . . . . . 5 . Shutdowns 1 | . . . . . . . . . . . . . . 1 . Energy Bleed 3 | . . . . . . . . . . . . . . 3 . Matter Decay 1 | . . . . . . . . . . . . . . 1 . Siege Activations 7 | . . . . . . . . . . . . . . 4 3 Total Turns 143 | . . . . . . . . . . . . . . 86 57 Longest Duration 36 | . . . . . . . . . . . . . . 36 31 Martial Activations . | . . . . . . . . . . . . . . . . Shielding Activations . | . . . . . . . . . . . . . . . . Robots Disrupted . | . . . . . . . . . . . . . . . . Combat Hostiles . | . . . . . . . . . . . . . . . . Robots Corrupted . | . . . . . . . . . . . . . . . . Combat Hostiles . | . . . . . . . . . . . . . . . . Parts Fried . | . . . . . . . . . . . . . . . . Impact Corruptions . | . . . . . . . . . . . . . . . . Robots Melted 1 | . 1 . . . . . . . . . . . . . . Combat Hostiles 1 | . 1 . . . . . . . . . . . . . . Parts Melted 8 | . 8 . . . . . . . . . . . . . . Heat Transferred 3360 | 518 2368 . . . . . . . . . . 74 . 400 . Parts Sabotaged . | . . . . . . . . . . . . . . . . Parts Stolen . | . . . . . . . . . . . . . . . . Parts Stripped . | . . . . . . . . . . . . . . . . Power Chain Reactions . | . . . . . . . . . . . . . . . . Alert | -11 -10 -9 -9 -8 -7 -7 -7 -6 -6 -6 -6 -5 -5 -5 -4 ------- Run | Yrd Mat Mat Min Mat Fac Low Low Fac Ext Cet Arc Fac Was Fac Fac Maximum Alert Level 4 | . . 2 1 3 2 . . . 1 1 . 3 1 4 4 Low Security (%) 50 | 100 100 62 53 30 . . . 100 49 81 100 68 44 33 . Level 1 21 | . . 28 46 18 48 . . . 50 18 . 14 55 12 . Level 2 17 | . . 8 . 17 51 . . . . . . 12 . 41 73 Level 3 9 | . . . . 34 . . . . . . . 3 . 11 18 Level 4 . | . . . . . . . . . . . . . . 2 7 Level 5 . | . . . . . . . . . . . . . . . . High Security . | . . . . . . . . . . . . . . . . Max Security . | . . . . . . . . . . . . . . . . Sterilizations 1 | . . . . 1 . . . . . . . . . . . Peak Influence 1405 | 10 77 439 236 1024 561 . . 124 310 226 146 732 254 1143 1405 Initial 556 | . . 1 166 64 464 . . 37 47 128 52 47 254 116 556 Average 294 | 2 28 170 198 494 404 . . 54 190 167 113 208 213 428 692 Influence Increases 8889 | 20 308 1009 70 1638 459 205 . 303 819 123 114 1207 2 1485 1127 Destroy 0b10 Robot/C 5140 | . 200 680 60 1020 280 180 . 180 560 80 80 460 . 840 520 Destroy 0b10 Robot/NC 720 | 20 20 75 . 230 35 5 . 20 20 5 10 80 . 80 120 Destroy Leader 1124 | . 50 172 10 282 70 20 . 52 72 . . 150 . 144 102 Allied During Kill 144 | . . . . . . . . . 118 17 4 5 . . . Successful Hack 35 | . 19 . . 2 . . . . 14 . . . . . . Disable Machine 600 | . . 60 . 30 45 . . 30 . 15 15 120 . 150 135 Destroy Structure 796 | . 4 7 . 29 29 . . 21 5 6 5 182 2 256 250 Lose Combat Pursuer 330 | . 15 15 . 45 . . . . 30 . . 210 . 15 . Influence Decreases 7484 | 20 302 588 331 782 920 643 64 264 687 222 109 615 564 514 859 Entered New Map 2607 | . . 5 261 102 558 209 24 22 51 102 79 89 474 50 581 Time Decay 4607 | 20 302 583 70 670 362 434 40 242 416 120 30 506 70 464 278 Lost Part 10 | . . . . 10 . . . . . . . . . . . Lost Ally 260 | . . . . . . . . . 220 . . 20 20 . . Squads Dispatched 49 | . 3 2 . 11 5 . . 4 4 . . 8 . 6 6 Investigation 8 | . 2 2 . . 1 . . . 3 . . . . . . Extermination 7 | . . . . . 1 . . 1 . . . 2 . 2 1 Reinforcement 17 | . 1 . . 6 . . . . 1 . . 4 . 2 3 Assault 6 | . . . . 2 . . . . . . . . . 2 2 Garrison 11 | . . . . 3 3 . . 3 . . . 2 . . . Intercept . | . . . . . . . . . . . . . . . . Searches Triggered . | . . . . . . . . . . . . . . . . Construction Impeded 7 | . . . . 2 . . . . 1 . . 1 . 1 2 Haulers Reinforced 2 | . . . . . . . . . . . . 1 . . 1 Active Scanning Responses . | . . . . . . . . . . . . . . . . Cargo Convoy Interrupts 1 | . . . . . . . . . . . . 1 . . . Stealth | -11 -10 -9 -9 -8 -7 -7 -7 -6 -6 -6 -6 -5 -5 -5 -4 --------- Run | Yrd Mat Mat Min Mat Fac Low Low Fac Ext Cet Arc Fac Was Fac Fac Distress Signals 13 | . 1 1 . 4 . . . 1 1 1 . 2 . . 2 Communications Jammed . | . . . . . . . . . . . . . . . . Distress Signals . | . . . . . . . . . . . . . . . . Times Spotted 309 | . 17 43 3 63 14 9 . 10 20 5 6 41 1 42 35 Peak Tracking Total 7 | . 3 4 3 5 5 7 . 3 4 5 1 4 1 7 6 Tactical Retreats 16 | . 1 1 . 3 . . . . 2 . . 8 . 1 . Traps | -11 -10 -9 -9 -8 -7 -7 -7 -6 -6 -6 -6 -5 -5 -5 -4 ------- Run | Yrd Mat Mat Min Mat Fac Low Low Fac Ext Cet Arc Fac Was Fac Fac Traps Triggered 10 | . 1 2 . 1 2 . . . 2 . . 1 . 1 . Indirectly . | . . . . . . . . . . . . . . . . Trap Hack Attempts . | . . . . . . . . . . . . . . . . Triggered . | . . . . . . . . . . . . . . . . Disarmed . | . . . . . . . . . . . . . . . . Reprogrammed . | . . . . . . . . . . . . . . . . Reused . | . . . . . . . . . . . . . . . . Traps Extracted . | . . . . . . . . . . . . . . . . Installed 2 | . . . . . . 2 . . . . . . . . . Triggered . | . . . . . . . . . . . . . . . . Most Traps Carried 1 | . . . . . . 1 . . . . . . . . . Machines | -11 -10 -9 -9 -8 -7 -7 -7 -6 -6 -6 -6 -5 -5 -5 -4 ---------- Run | Yrd Mat Mat Min Mat Fac Low Low Fac Ext Cet Arc Fac Was Fac Fac Machines Disabled 41 | . . 4 . 2 3 . . 2 1 1 1 8 . 10 9 Max in Single Turn 3 | . . 1 . 1 2 . . 2 . 1 . 2 . 3 2 Machines Repaired . | . . . . . . . . . . . . . . . . Machines Dismantled . | . . . . . . . . . . . . . . . . Machines Sabotaged . | . . . . . . . . . . . . . . . . Overloaded Fab Kills . | . . . . . . . . . . . . . . . . Hacking | -11 -10 -9 -9 -8 -7 -7 -7 -6 -6 -6 -6 -5 -5 -5 -4 --------- Run | Yrd Mat Mat Min Mat Fac Low Low Fac Ext Cet Arc Fac Was Fac Fac Machines Accessed 15 | . 5 1 . 1 1 . . . 7 . . . . . . Terminals 13 | . 5 1 . . . . . . 7 . . . . . . Fabricators . | . . . . . . . . . . . . . . . . Repair Stations 1 | . . . . 1 . . . . . . . . . . . Recycling Units . | . . . . . . . . . . . . . . . . Scanalyzers . | . . . . . . . . . . . . . . . . Garrison Access 1 | . . . . . 1 . . . . . . . . . . Total Hacks 45 | . 15 5 . 5 1 . . . 19 . . . . . . Successful 20 | . 8 3 . 4 . . . . 5 . . . . . . Failed 25 | . 7 2 . 1 1 . . . 14 . . . . . . Catastrophic 3 | . . . . . 1 . . . 2 . . . . . . Database Lockouts . | . . . . . . . . . . . . . . . . Manual 14 | . 14 . . . . . . . . . . . . . . Terminals 39 | . 15 5 . . . . . . 19 . . . . . . Fabricators . | . . . . . . . . . . . . . . . . Repair Stations 5 | . . . . 5 . . . . . . . . . . . Recycling Units . | . . . . . . . . . . . . . . . . Scanalyzers . | . . . . . . . . . . . . . . . . Garrison Access 1 | . . . . . 1 . . . . . . . . . . Terminal Hacks 9 | . 1 3 . . . . . . 5 . . . . . . Record 1 | . . 1 . . . . . . . . . . . . . Open Door 5 | . . . . . . . . . 5 . . . . . . Alert Level 1 | . . 1 . . . . . . . . . . . . . Locate Traps 2 | . 1 1 . . . . . . . . . . . . . Fabricator Hacks . | . . . . . . . . . . . . . . . . Repair Station Hacks 4 | . . . . 4 . . . . . . . . . . . Scan Component 2 | . . . . 2 . . . . . . . . . . . Repair 2 | . . . . 2 . . . . . . . . . . . Recycling Unit Hacks . | . . . . . . . . . . . . . . . . Scanalyzer . | . . . . . . . . . . . . . . . . Garrison Access Hacks . | . . . . . . . . . . . . . . . . Unauthorized Hacks 7 | . 7 . . . . . . . . . . . . . . Terminals 7 | . 7 . . . . . . . . . . . . . . Botnet 2 | . 2 . . . . . . . . . . . . . . Skim 5 | . 5 . . . . . . . . . . . . . . Fabricators . | . . . . . . . . . . . . . . . . Repair Stations . | . . . . . . . . . . . . . . . . Recycling Units . | . . . . . . . . . . . . . . . . Scanalyzers . | . . . . . . . . . . . . . . . . Garrison Access . | . . . . . . . . . . . . . . . . Data Cores Recovered 3 | . . . . 1 . . . . . . . 1 . 1 . Used . | . . . . . . . . . . . . . . . . Hacking Detections 11 | . 5 1 . . 1 . . . 4 . . . . . . Full Trace Events 3 | . . . . . . . . . 3 . . . . . . Feedback Events 1 | . . . . . . . . . 1 . . . . . . Corruption 1 | . . . . . . . . . 1 . . . . . . Feedback Blocked . | . . . . . . . . . . . . . . . . Robot Schematics Acquired . | . . . . . . . . . . . . . . . . Robots Built . | . . . . . . . . . . . . . . . . Authchips . | . . . . . . . . . . . . . . . . Time . | . . . . . . . . . . . . . . . . Total Robot Build Rating . | . . . . . . . . . . . . . . . . Part Schematics Acquired . | . . . . . . . . . . . . . . . . Parts Built . | . . . . . . . . . . . . . . . . Authchips . | . . . . . . . . . . . . . . . . Time . | . . . . . . . . . . . . . . . . Total Part Build Rating . | . . . . . . . . . . . . . . . . Parts Repaired 2 | . . . . 2 . . . . . . . . . . . Time 58 | . . . . 58 . . . . . . . . . . . Parts Recycled . | . . . . . . . . . . . . . . . . Recycled Matter . | . . . . . . . . . . . . . . . . Retrieved Matter . | . . . . . . . . . . . . . . . . Retrieved Components . | . . . . . . . . . . . . . . . . Parts Scanalyzed . | . . . . . . . . . . . . . . . . Part Schematics Acquired . | . . . . . . . . . . . . . . . . Parts Damaged . | . . . . . . . . . . . . . . . . Bothacking | -11 -10 -9 -9 -8 -7 -7 -7 -6 -6 -6 -6 -5 -5 -5 -4 ------------ Run | Yrd Mat Mat Min Mat Fac Low Low Fac Ext Cet Arc Fac Was Fac Fac Used RIF Installer . | . . . . . . . . . . . . . . . . Robots Hacked . | . . . . . . . . . . . . . . . . Non-combat . | . . . . . . . . . . . . . . . . Combat . | . . . . . . . . . . . . . . . . Robot Hacks Applied . | . . . . . . . . . . . . . . . . Relay Couplers Released . | . . . . . . . . . . . . . . . . Fabnet Peak Effective % . | . . . . . . . . . . . . . . . . Robots Rewired 6 | . . . . . . . . . 6 . . . . . . Allies Hacked . | . . . . . . . . . . . . . . . . Hacks Repelled . | . . . . . . . . . . . . . . . . Allies | -11 -10 -9 -9 -8 -7 -7 -7 -6 -6 -6 -6 -5 -5 -5 -4 -------- Run | Yrd Mat Mat Min Mat Fac Low Low Fac Ext Cet Arc Fac Was Fac Fac Total Allies 14 | . . . . . . . . . 13 . . . 1 . . Largest Group 10 | . . . . . . . . . 10 2 2 1 1 . . Highest-Rated Group 428 | . . . . . . . . . 428 198 198 34 31 . . Highest-Rated Ally 159 | . . . . . . . . . 159 159 159 34 31 . . Total Orders . | . . . . . . . . . . . . . . . . Ally Attacks 98 | . . . . . . . . . 61 12 12 4 9 . . Total Damage 2342 | . . . . . . . . . 1639 387 145 22 149 . . Kills 18 | . . . . . . . . . 14 3 1 . . . . Allies Corrupted . | . . . . . . . . . . . . . . . . Allies Melted . | . . . . . . . . . . . . . . . . Intel | -11 -10 -9 -9 -8 -7 -7 -7 -6 -6 -6 -6 -5 -5 -5 -4 ------- Run | Yrd Mat Mat Min Mat Fac Low Low Fac Ext Cet Arc Fac Was Fac Fac Active Infowar (turns) 13334 | 16 902 2322 141 2581 839 1062 83 592 1000 257 79 1532 143 1177 608 Terrain 3432 | . . . . . . . . . . . . 1504 143 1177 608 Structural 122 | . . . . 122 . . . . . . . . . . . Seismic 11725 | 16 902 2322 141 2581 839 1062 83 592 1000 257 79 1532 143 176 . Robot Analysis Total . | . . . . . . . . . . . . . . . . Derelict Logs Recovered 2 | . . . . . . 2 . . . . . . . . . Drone Launches . | . . . . . . . . . . . . . . . . Drone Recoveries . | . . . . . . . . . . . . . . . . Exploration | -11 -10 -9 -9 -8 -7 -7 -7 -6 -6 -6 -6 -5 -5 -5 -4 ------------- Run | Yrd Mat Mat Min Mat Fac Low Low Fac Ext Cet Arc Fac Was Fac Fac Turns Passed 13407 | 87 902 2324 141 2581 839 1062 83 592 1000 257 79 1532 143 1177 608 Spaces Moved 6354 | 42 364 1188 75 987 455 657 52 321 518 151 38 727 69 492 218 Core 8 | 6 . 2 . . . . . . . . . . . . . Treads 5928 | . . 1168 75 987 455 657 52 321 518 151 38 727 69 492 218 Legs 418 | 36 364 18 . . . . . . . . . . . . . Wheels . | . . . . . . . . . . . . . . . . Hover . | . . . . . . . . . . . . . . . . Flight . | . . . . . . . . . . . . . . . . Fastest Speed 50 | 50 120 120 160 160 150 150 150 150 152 152 152 152 155 155 160 Average Speed 153 | 110 120 159 160 160 152 150 150 151 152 152 152 153 155 159 160 Slowest Speed 160 | 120 120 160 160 160 160 150 150 152 152 152 152 155 155 160 160 Overloaded Moves . | . . . . . . . . . . . . . . . . Propulsion Burnouts . | . . . . . . . . . . . . . . . . Robots Hopped . | . . . . . . . . . . . . . . . . Potential Cave-ins . | . . . . . . . . . . . . . . . . Cave-ins Triggered 1 | . . . . . . . . . . . . 1 . . . Exploration Rate (%) 44 | 3 45 92 23 86 15 91 7 11 69 73 73 24 82 16 9 Regions Visited 15 Branch Regions 6 Pre-discovered Areas 2 | . 1 . . . . 1 . . . . . . . . . Known Exits Taken 1 | . . . . . . . . . . . . . . 1 . Unknown Exits Taken 12 | 1 1 1 1 1 1 1 1 1 1 1 1 . . . . Scrap Searched 4 | . . . 1 . . 3 . . . . . . . . . Spaces Dug 31 | . . . . 4 . . . . . . . 5 . . 22 Terrain Destroyed 448 | . . . . 24 40 . . 20 . . . 89 1 143 131 Melee . | . . . . . . . . . . . . . . . . Projectile 145 | . . . . 24 . . . . . . . 16 1 54 50 AOE 303 | . . . . . 40 . . 20 . . . 73 . 89 81 Terrain Rammed . | . . . . . . . . . . . . . . . . Walls Destroyed . | . . . . . . . . . . . . . . . . Machines Disabled . | . . . . . . . . . . . . . . . . Actions | -11 -10 -9 -9 -8 -7 -7 -7 -6 -6 -6 -6 -5 -5 -5 -4 --------- Run | Yrd Mat Mat Min Mat Fac Low Low Fac Ext Cet Arc Fac Was Fac Fac Total 8746 | 64 705 1419 82 1652 556 699 53 383 680 166 47 1026 98 754 362 Wait 1291 | 3 248 50 1 411 38 8 . 34 89 3 3 194 15 134 60 Move 6340 | 41 363 1187 74 986 454 656 51 320 517 150 37 727 68 491 218 Hop . | . . . . . . . . . . . . . . . . Pick Up 19 | . 3 6 . 4 1 1 . . . 2 . 1 . 1 . Fast Attach 27 | 8 1 5 . 6 . . . 2 . . . 2 . 3 . Attach 3 | . . . . 2 . 1 . . . . . . . . . Detach 1 | . . . . 1 . . . . . . . . . . . Swap 68 | 1 2 16 . 8 9 . . 3 2 3 1 16 . 4 3 Drop 52 | 3 2 17 . 7 6 1 . . . 2 . 7 . 6 1 Fire 654 | 8 62 96 7 174 25 20 2 21 24 6 6 59 4 76 64 Melee . | . . . . . . . . . . . . . . . . Ram . | . . . . . . . . . . . . . . . . Kick 2 | . 2 . . . . . . . . . . . . . . Crush 21 | . . 1 . 5 2 . . . 5 . . 4 . 4 . Escape Stasis . | . . . . . . . . . . . . . . . . Rewire 26 | . . . . . . . . . 26 . . . . . . Trap 2 | . . . . . . 2 . . . . . . . . . Miscellaneous 240 | . 22 41 . 48 21 10 . 3 17 . . 16 11 35 16 Route ------- -11/Scrapyard -10/Materials -9/Materials (discovered 5 exits: *Mat x3 / [*Min x2]) -9/Mines -8/Materials (discovered 3 exits: *Fac x3) -7/Factory (discovered 2 exits: Sto / [*Low]) -7/Lower Caves -7/Lower Caves -6/Factory -6/Extension (discovered 2 exits: [*Fac] / [*Cet]) -6/Cetus -6/Archives -5/Factory -5/Waste -5/Factory -4/Factory History --------- Turn | Location | Event 3 | -11/Scrapyard | Upgraded with Propulsion slot (x1) 3 | -11/Scrapyard | Upgraded with Weapon slot (x1) 3 | -11/Scrapyard | Upgraded with Utility slot (x2) 4 | -11/Scrapyard | Discovered new exit (range 15) 88 | -11/Scrapyard | Entered Materials 313 | -10/Materials | Build established: Mutant 499 | -10/Materials | Discovered new exit (range 5) 588 | -10/Materials | Derelicts attacked the area 597 | -10/Materials | Learned Storage trap positions 661 | -10/Materials | Loaded intel: 20 trap records 717 | -10/Materials | Learned location of Storage (-7) 762 | -10/Materials | Loaded intel: 28 non-interactive machine locations 893 | -10/Materials | Learned location of 1 exit from Storage 990 | -10/Materials | Entered another Materials area 992 | -9/Materials | Reached level 2 1151 | -9/Materials | Reached level 3 1183 | -9/Materials | Upgraded with Propulsion slot (x1) 1183 | -9/Materials | Upgraded with Weapon slot (x1) 1295 | -9/Materials | Discovered new exit (range 15) 1699 | -9/Materials | Discovered new exit (range 16) 1823 | -9/Materials | Discovered new exit (range 8) 1906 | -9/Materials | Build established: Scavenger-Gunner 2030 | -9/Materials | Reached level 4 2553 | -9/Materials | Reached level 5 2572 | -9/Materials | Discovered new exit (range 16) 2635 | -9/Materials | Build established: Gunner 2934 | -9/Materials | Discovered new exit (range 13) 3267 | -9/Materials | Upgraded with Utility slot (x1) 3314 | -9/Materials | Entered Mines 3316 | -9/Mines | Reached level 6 3438 | -9/Mines | Discovered new exit (range 9) 3455 | -9/Mines | Entered Materials 3457 | -8/Materials | Reached level 7 3698 | -8/Materials | Reached level 8 3839 | -8/Materials | Upgraded with Utility slot (x1) 3943 | -8/Materials | Discovered new exit (range 5) 4262 | -8/Materials | Discovered new exit (range 5) 4308 | -8/Materials | Reached level 9 4622 | -8/Materials | Build established: Scavenger-Gunner 4642 | -8/Materials | Discovered new exit (range 17) 4727 | -8/Materials | Garrison activated, responded to threat 4832 | -8/Materials | Reached level 10 5055 | -8/Materials | First assault squad dispatched 5130 | -8/Materials | Upgraded with Utility slot (x1) 5494 | -8/Materials | Reached level 11 5643 | -8/Materials | Build established: Gunner 5748 | -8/Materials | Repaired Imp. Treads 5775 | -8/Materials | Repaired Lgt. Cannon 6024 | -8/Materials | Sterilization system engaged 6024 | -8/Materials | Non-combat units ordered to evacuate 6036 | -8/Materials | Entered Factory 6037 | -7/Factory | Identified exit to Storage 6038 | -7/Factory | Reached level 12 6469 | -7/Factory | Core integrity fell below 50% 6554 | -7/Factory | Reached level 13 6674 | -7/Factory | Garrison activated, responded to threat 6820 | -7/Factory | Discovered new exit (range 16) 6875 | -7/Factory | Entered Lower Caves 6877 | -7/Lower Caves | Reached level 14 6880 | -7/Lower Caves | Upgraded with Utility slot (x1) 7231 | -7/Lower Caves | Attracted the attention of an 0b10 base 7282 | -7/Lower Caves | Destroyed 7 combat bots 7558 | -7/Lower Caves | Encountered a Warlord checkpoint 7915 | -7/Lower Caves | Discovered new exit (range 11) 7937 | -7/Lower Caves | Entered another Lower Caves area 7939 | -7/Lower Caves | Reached level 15 7951 | -7/Lower Caves | Upgraded with Propulsion slot (x1) 8011 | -7/Lower Caves | Discovered new exit (range 7) 8020 | -7/Lower Caves | Entered Factory 8022 | -6/Factory | Reached level 16 8082 | -6/Factory | Upgraded with Weapon slot (x1) 8355 | -6/Factory | Garrison activated, responded to threat 8553 | -6/Factory | Discovered new exit (range 18) 8612 | -6/Factory | Entered Extension 8614 | -6/Extension | Reached level 17 8711 | -6/Extension | Rescued A7 8762 | -6/Extension | Disrupted transfer network 8780 | -6/Extension | Reached level 18 8799 | -6/Extension | Rescued a captive Derelict 8802 | -6/Extension | Rescued a captive Derelict 8917 | -6/Extension | Rescued a captive Derelict 8919 | -6/Extension | Rescued a captive Derelict 9325 | -6/Extension | Spotted B-75 Beast 9334 | -6/Extension | Destroyed B-75 Beast 9341 | -6/Extension | Spotted B-75 Beast 9349 | -6/Extension | Destroyed B-75 Beast 9408 | -6/Extension | Rescued a captive Derelict 9569 | -6/Extension | Rescued a captive Derelict 9596 | -6/Extension | Discovered new exit (range 10) 9597 | -6/Extension | Discovered new exit (range 6) 9612 | -6/Extension | Entered Cetus 9612 | -6/Cetus | Accompanied by 2 allies (A7) 9614 | -6/Cetus | Reached level 19 9617 | -6/Cetus | Acquired a Cetus Manufacturing Module code from A7 9632 | -6/Cetus | Spotted Cetus Guard 9632 | -6/Cetus | Spotted Cetus Guard 9635 | -6/Cetus | Spotted Cetus Guard 9636 | -6/Cetus | Allies destroyed Cetus Guard 9638 | -6/Cetus | Destroyed Cetus Guard 9643 | -6/Cetus | Allies destroyed Cetus Guard 9643 | -6/Cetus | Spotted Cetus Guard 9647 | -6/Cetus | Destroyed Cetus Guard 9823 | -6/Cetus | Escorted A7 to Cetus Mainframe 9840 | -6/Cetus | Discovered new exit (range 19) 9869 | -6/Cetus | Entered Archives 9869 | -6/Archives | Accompanied by 2 allies (A7) 9874 | -6/Archives | Received a hacking code to weaken MAIN.C 9924 | -6/Archives | Discovered new exit (range 15) 9948 | -6/Archives | Entered Factory 9948 | -5/Factory | Accompanied by 1 ally 9949 | -5/Factory | Identified exit to Upper Caves 9950 | -5/Factory | Reached level 20 9955 | -5/Factory | Upgraded with Power slot (x1) 9955 | -5/Factory | Upgraded with Utility slot (x1) 10484 | -5/Factory | Reached level 21 11119 | -5/Factory | Crushed by falling debris 11119 | -5/Factory | Core integrity fell below 50% 11190 | -5/Factory | Cargo convoy interrupted 11361 | -5/Factory | Garrison activated, responded to threat 11480 | -5/Factory | Sucked down chute 11480 | -5/Factory | Entered Waste 11481 | -5/Waste | Met a frightened Derelict 11495 | -5/Waste | EMP discharged 11523 | -5/Waste | Spotted C-40 Crusher 11531 | -5/Waste | Spotted C-40 Crusher 11553 | -5/Waste | Spotted C-40 Crusher 11573 | -5/Waste | Spotted C-40 Crusher 11578 | -5/Waste | Discovered new exit (range 16) 11581 | -5/Waste | Destroyed C-40 Crusher 11595 | -5/Waste | EMP discharged 11595 | -5/Waste | System corruption reached 10% 11623 | -5/Waste | Entered Factory 11706 | -5/Factory | Reached level 22 12210 | -5/Factory | Destroyed 16 combat bots 12223 | -5/Factory | First assault squad dispatched 12450 | -5/Factory | Destroyed 7 combat bots 12510 | -5/Factory | Discovered new exit (range 8) 12520 | -5/Factory | Identified exit to Factory 12707 | -5/Factory | Reached level 23 12800 | -5/Factory | Entered another Factory area 12894 | -4/Factory | Reached level 24 13248 | -4/Factory | Spotted B-86 Titan 13276 | -4/Factory | Core integrity fell below 50% 13280 | -4/Factory | Destroyed B-86 Titan 13300 | -4/Factory | First assault squad dispatched 13307 | -4/Factory | Core integrity fell below 20% 13355 | -4/Factory | Destroyed 9 combat bots 13372 | -4/Factory | Reached level 25 13408 | -4/Factory | Destroyed by G-73 Enforcer with Phase Gun Last Messages --------------- 13403_ L-61 Swordsman knocked back. 13403_ HV Slug penetrates L-61 Swordsman. 13403_ L-61 Swordsman suffers critical hit (Destroy). 13403_ Destroyed Flexi-carbon Leg. 13403_ L-61 Swordsman knocked back. 13403_ K-01 Serf collects debris. 13404_ Acquired 23 matter. 13404_ The unstable cave ceiling collapses. 13404_ U-05 Engineer builds a Wall. 13405_ K-01 Serf collects debris. 13406_ The unstable cave ceiling collapses. 13406_ Slug penetrates L-61 Swordsman. 13406_ L-61 Swordsman destroyed. 13406_ K-01 Serf collects debris. 13407_ Acquired 3 matter. 13407_ Acquired 10 matter. 13407_ Acquired 9 matter. 13407_ Acquired 1 matter. 13408_ The unstable cave ceiling collapses. 13408_ Rnf. Fission Core crushed. Map ----- +----------------------------------------------------+ | ?????????????????????????????????????????????????? | | ?????????????????????????????????????????????????? | | ?????????????????????????????????????????????????? | | ?????????????????????????????????????????????????? | | ?????????????????????????????????????????????????? | | ?????????????????????????????????????????????????? | | ?????????????????????????????????????????????????? | | ??????????????????????? ?????????????????????????? | | ?????????????????????#########???????????????????? | | ?????????????????? #???"??????????????? | | ???????????????? + #?? "??????????????? | | ???????????????### ### ""?????????????? | | ???????????????# #u ### ??????????? | | ?????????????#?# # k k= #######+###????????? | | ?????????????? # k == # #????????? | | ?????????????## = # ^^ #????????? | | ???????????? ### = ^ ###??????? | | ???????????? %* = ####?????? | | ??????????? ### ^ ######???? | | ????????? #### ^ ^ ####### ??? | | ????????? ### k # ^ ^ # # ??? | | ???????? A;;;; %#* ### ^% + # ?? | | ???????? m =[%=%[% u | != # # ? | | ??????? %%!![%=/* [ %[ # # ? | | ??????? =!=[b[%! = =*### # # | | ??????? ! *%%%%!l%@ * ## # """ # | | ??????? k =g *%=%!!*=! % ## # """ ##### | | ??????????##### % |* %!!% ! ;# # """ ### | | ?????????? !!= ;# ######### | | ???????? """ !!= =! ;;#"######### | | ?????????? """ = * k # | | ??????????? """ %! ;*! # | | ??????????? % [;%! # | | ???????????? ! = ! ;= "" """ # | | ??????????#?### # # # ## [#%= " """ # | | ????????####### # #% " """ # | | ???????######### # # "" "" ### | | ?????#?#?####### # #! "" "" ### | | ????############ " # ### | | ???############# + # ### | | ???#?########### " # ! ### | | ??####?######### ; # ### | | ??############## ; #"###+########## | | ?###?########### # !!%%* | | ################ # [[%=%== | | ##?############# # = = *!% | | ?############### # %% !*%%% | | ##??########################" = %=!% | | ############# # %% ################ | | ############# # = ################ | +----------------------------------------------------+ Best States ------------- Heat Dissipation 85 Energy Generation 42 Energy Capacity 340 Matter Stores 400 Matter Capacity 400 Sight Range 19 Robot Scan Range 20 Terrain Scan Range 16 Terrain Scan Density 1010 Armor Coverage 450 Resistance: KI 15 Resistance: TH 20 Weapon Cycling 20 Evasion (%) 55 Targeting Accuracy 8 Core Analysis 6 Recoil Reduction 4 Item Schematics ----------------- None Robot Schematics ------------------ None Fabricated ------------ Nothing Repaired ---------- Imp. Treads | 63% | -8/Materials Lgt. Cannon | 70% | -8/Materials Alien Tech Used ----------------- None Achievements -------------- None Challenges ------------ None RPGLIKE | -11 -10 -9 -9 -8 -7 -7 -7 -6 -6 -6 -6 -5 -5 -5 -4 --------- Run | Yrd Mat Mat Min Mat Fac Low Low Fac Ext Cet Arc Fac Was Fac Fac Levels Raised 24 | . . 4 1 5 2 1 1 1 2 1 . 2 . 2 2 XP Earned 39218 | 3000 1250 6003 850 7840 3530 1189 349 2800 3008 481 334 3503 97 1928 3056 XP Spent 35430 | 2300 700 5730 . 9250 1350 2550 1475 2075 1100 . . 6450 . 2450 . Upgrades 90 | 4 4 17 . 18 2 2 6 4 5 . . 19 . 9 . Power Slot 1 | . . . . . . . . . . . . 1 . . . Propulsion Slot 3 | 1 . 1 . . . . 1 . . . . . . . . Utility Slot 7 | 2 . 1 . 2 . 1 . . . . . 1 . . . Weapon Slot 3 | 1 . 1 . . . . . 1 . . . . . . . Core Integrity 18 | . . 3 . . . . 5 . . . . 10 . . . Heat Dissipation 10 | . 1 4 . . . . . . 1 . . . . 4 . Energy Generation 3 | . 1 . . . 2 . . . . . . . . . . Matter Storage 2 | . . 2 . . . . . . . . . . . . . Mass Support 1 | . 1 . . . . . . . . . . . . . . Inventory Capacity 3 | . 1 1 . 1 . . . . . . . . . . . Sight Range 3 | . . . . 1 . . . 2 . . . . . . . Sensor Range 10 | . . . . 5 . . . 1 4 . . . . . . Terrain Scan Density 10 | . . . . . . . . . . . . 5 . 5 . Ranged Accuracy 5 | . . 2 . 1 . . . . . . . 2 . . . KI Resistance % 3 | . . . . 2 . 1 . . . . . . . . . TH Resistance % 4 | . . . . 4 . . . . . . . . . . . KI Damage % 4 | . . 2 . 2 . . . . . . . . . . . Protomatter Created 2395 | . 159 410 . 442 141 76 . 51 195 14 . 185 87 360 275 Integrity Restored 5039 | . 416 891 . 1005 423 213 . 69 309 . . 345 261 750 357 Core 4626 | . 365 873 . 832 423 213 . 69 138 . . 345 261 750 357 Parts 413 | . 51 18 . 173 . . . . 171 . . . . . . Protomatter Decayed 773 | . . 76 . 48 . 5 . . 197 23 . 296 . 49 79 Game ------ Seed MagneticBoreSpiker Manual? 0 Play Time 01:22:54 Cumulative 206.4 hours Start 2025.10.21 @ 15:51:52 End 2025.10.21 @ 21:49:30 Sessions 3 Manual Loads 0 Difficulty Rogue Special Mode Winter2019/RPGLIKE Game No. 340 Rogue 338 Adventurer 0 Explorer 2 Win Type - Total 3 Types 2/0/0/1/0/0/0/0/0/0 Lore% 51 Gallery% 60 Achievement% 52 Wizard Run 0 Options --------- Layout 0 ASCII 0 Keyboard 1 Movement Arrows Keybinds 0 Fullscreen 1 Font 20/SmallcapsGlow Map View 82x60 Zoom Use 9% Tactical HUD 1 Map Filters NONE Filters NONE Steam 1 RUN: 5a8058b0-ca84-4eec-a2ff-26f015d2bee7